Cogmind - Beta 9.6 @@@ ROGUE MODE // 2020.06.22 @ 18:58:59 Player: Vectis Result: Destroyed by G-47 Trooper with Particle Gun Performance ------------- Evolutions (2) 1000 Regions Visited (9) 1800 Robots Destroyed (142) 710 Value Destroyed (4606) 4606 Prototype IDs (2) 40 Alien Tech Used (0) 0 Bonus (1310) 1310 TOTAL SCORE: 9466 Bonus ------- High Alert Combat Kills 483 Follower Combat Kills 291 Entered Garrisons 200 Used RIF Installer 500 Friendly Fire -164 Cogmind --------- Core Integrity 0/550 Matter 280/300 Energy 263/265 System Corruption 0% Temperature Cool (9) Movement Rolling (140) Ox5 Location -8/Materials Parts ------- > --- POWER (1) -------- Improved Ion Engine > --- PROPULSION (2) --- Armored Wheel Armored Wheel > --- UTILITY (6) ------ Large Storage Unit Large Storage Unit High-capacity Storage Unit High-capacity Storage Unit High-capacity Storage Unit Experimental Sensor Array > --- WEAPON (2) ------- Gauss Rifle Katana > --- INVENTORY (40) --- Deuterium Engine Deuterium Engine Fission Core Armored Wheel Armored Wheel Armored Wheel Armored Wheel Armored Wheel Armored Wheel Improved Heat Sink Cooling System Large Storage Unit Large Storage Unit Large Storage Unit High-capacity Storage Unit High-capacity Matter Pod (200) Core Shielding Hacking Suite Hacking Suite Relay Coupler [NC] (28) Relay Coupler [NC] (24) Relay Coupler [NC] (22) Relay Coupler [ARC] (9) Relay Coupler [Swarmer] (34) Relay Coupler [Swarmer] (43) Relay Coupler [Swarmer] (40) Relay Coupler [Swarmer] (34) Relay Coupler [Grunt] (22) Relay Coupler [Duelist] (22) Relay Coupler [Sentry] (17) Relay Coupler [Demolisher] (17) Relay Coupler [Specialist] (17) Relay Coupler [Hunter] (13) Shock Rifle Heavy Particle Cannon Heavy Assault Rifle Improved Grenade Launcher Heavy Rocket Launcher Improved Datajack Plasma Cutter Peak State ------------ > --- POWER ------------ Improved Ion Engine > --- PROPULSION ------- Armored Wheel Armored Wheel > --- UTILITY ---------- Large Storage Unit Large Storage Unit High-capacity Storage Unit High-capacity Storage Unit High-capacity Storage Unit Experimental Sensor Array > --- WEAPON ----------- Gauss Rifle Katana > --- INVENTORY -------- Deuterium Engine Deuterium Engine Fission Core Armored Wheel Armored Wheel Armored Wheel Armored Wheel Armored Wheel Armored Wheel Improved Heat Sink Cooling System Large Storage Unit Large Storage Unit Large Storage Unit High-capacity Storage Unit High-capacity Matter Pod Core Shielding Hacking Suite Hacking Suite Relay Coupler [NC] Relay Coupler [NC] Relay Coupler [NC] Relay Coupler [ARC] Relay Coupler [Swarmer] Relay Coupler [Swarmer] Relay Coupler [Swarmer] Relay Coupler [Swarmer] Relay Coupler [Grunt] Relay Coupler [Duelist] Relay Coupler [Sentry] Relay Coupler [Demolisher] Relay Coupler [Specialist] Relay Coupler [Hunter] Shock Rifle Heavy Particle Cannon Heavy Assault Rifle Improved Grenade Launcher Heavy Rocket Launcher Improved Datajack Plasma Cutter [Rating: 34] Favorites ----------- Power Light Nuclear Core Engine Ion Engine Power Core Light Nuclear Core Propulsion Light Treads Treads Light Treads Wheel Armored Wheel Utility High-capacity Storage Unit Device Improved Heat Sink Storage High-capacity Storage Unit Hackware Relay Coupler [Duelist] Protection Core Shielding Weapon Autogun Energy Gun EM Pulse Gun Ballistic Gun Autogun Ballistic Cannon Assault Cannon Launcher Grenade Launcher Special Weapon Plasma Cutter Slashing Weapon Katana Special Melee Weapon Datajack Build | -11 -10 -10 -9 -9 -9 -8 -8 -8 -8 ------- Run | Scr Mat Min Mat Min Exi Min Mat Gar Mat Slots Evolved 4 | . . . 2 . . . 2 . . Power . | . . . . . . . . . . Propulsion . | . . . . . . . . . . Utility 4 | . . . 2 . . . 2 . . Weapon . | . . . . . . . . . . Parts Attached 132 | 6 20 . 3 14 1 2 50 34 2 Power 14 | 1 2 . . 2 . . 7 2 . Engine 10 | 1 2 . . 2 . . 4 1 . Core 4 | . . . . . . . 3 1 . Reactor . | . . . . . . . . . . Propulsion 35 | 2 6 . 2 2 . 1 13 9 . Treads 13 | 2 6 . 2 2 . . 1 . . Leg . | . . . . . . . . . . Wheel 22 | . . . . . . 1 12 9 . Hover . | . . . . . . . . . . Flight . | . . . . . . . . . . Utility 29 | 1 3 . 1 4 1 . 10 8 1 Device 3 | . . . . . . . . 2 1 Storage 10 | 1 3 . 1 . 1 . 3 1 . Processor . | . . . . . . . . . . Hackware 2 | . . . . . . . . 2 . Protection 14 | . . . . 4 . . 7 3 . Artifact . | . . . . . . . . . . Weapon 54 | 2 9 . . 6 . 1 20 15 1 Energy Gun 6 | 1 4 . . . . . 1 . . Energy Cannon . | . . . . . . . . . . Ballistic Gun 28 | 1 5 . . 4 . 1 11 6 . Ballistic Cannon 8 | . . . . . . . 4 4 . Launcher 5 | . . . . 2 . . 2 1 . Special Weapon 4 | . . . . . . . 2 2 . Impact Weapon . | . . . . . . . . . . Slashing Weapon 1 | . . . . . . . . . 1 Piercing Weapon . | . . . . . . . . . . Special Melee Weapon 2 | . . . . . . . . 2 . Unidentified Prototypes 1 | . . . . . . . 1 . . Parts Lost 49 | . 2 . . 8 . 2 29 8 . Power 9 | . 1 . . 1 . . 5 2 . Propulsion 14 | . . . . 2 . 1 9 2 . Utility 8 | . . . . 2 . . 4 2 . Weapon 18 | . 1 . . 3 . 1 11 2 . Highest Loss Streak 4 | . 1 . . 4 . 1 4 4 . Average Slot Usage (%) 95 | . 97 100 80 97 100 99 95 92 100 Engine 8 | . 14 14 11 10 11 11 4 2 9 Core 2 | . . . . . . . 4 4 . Treads 12 | . 28 28 22 21 22 21 2 . . Wheel 8 | . . . . . . . 14 17 18 Storage 34 | . 25 28 25 33 38 44 36 37 45 Protection 7 | . . . . 9 5 . 15 9 1 Ballistic Gun 17 | . 25 28 22 21 22 22 11 12 17 Ballistic Cannon 2 | . . . . . . . 4 3 . Naked Turns . | . . . . . . . . . . Heaviest Build 143 | 9 75 75 91 102 111 111 118 143 143 Greatest Support 40 | 40 40 40 40 40 40 40 40 32 24 Greatest Overweight (x) 11 | . 1 1 2 4 2 6 11 5 5 Average Overweight (x) 2 | . . 1 1 2 2 2 4 4 5 Largest Inventory Capacity 40 | 6 20 20 26 26 32 32 32 40 40 Average Capacity 27 | 5 14 20 21 26 28 32 32 32 40 Most Carried 40 | 4 20 20 23 26 32 32 32 40 40 Average Carried 25 | 2 13 19 20 23 27 31 29 31 40 Final Capacity 40 | 6 20 20 26 26 32 32 32 40 40 Final Carried 40 | 4 20 20 23 25 32 31 31 40 40 Class Distribution -------------------- 77% | Hauler-Mutant 14% | Mutant 8% | Bothacker-Mutant Dominant Class ---------------- Mutant | -10/Materials Hauler-Mutant | -10/Mines Hauler-Mutant | -9/Materials Hauler-Mutant | -9/Mines Hauler-Mutant | -9/Exiles Hauler-Mutant | -8/Mines Hauler-Mutant | -8/Materials Hauler-Mutant | -8/Garrison Bothacker-Mutant | -8/Materials Resources | -11 -10 -10 -9 -9 -9 -8 -8 -8 -8 ----------- Run | Scr Mat Min Mat Min Exi Min Mat Gar Mat Matter Collected 3945 | 263 411 32 89 601 . 108 1642 799 . Remotely . | . . . . . . . . . . Salvage Created 5579 | 105 646 105 89 588 . 262 2669 1115 . Parts 311 | 3 38 7 10 34 . 14 143 62 . Haulers Intercepted 7 | . 2 . . . . . 5 . . Recyclers Shooed 6 | 1 2 1 . . . . 2 . . Parts Field Recycled . | . . . . . . . . . . Retrieved Matter . | . . . . . . . . . . Parts Self-Destructed . | . . . . . . . . . . Prevented . | . . . . . . . . . . Kills | -11 -10 -10 -9 -9 -9 -8 -8 -8 -8 ------- Run | Scr Mat Min Mat Min Exi Min Mat Gar Mat Combat Hostiles Destroyed 100 | . 12 . 1 21 . 4 47 15 . Guns 79 | . 12 . 1 15 . 4 38 9 . Cannons 9 | . . . . . . . 4 5 . AOE 12 | . . . . 6 . . 5 1 . Classes Destroyed 13 | 2 5 . 2 3 . 1 . . . Worker 4 | . . . . 1 . . 3 . . Builder 10 | . . . 1 1 . . 8 . . Tunneler 5 | 1 . 1 . 1 . . 2 . . Hauler 7 | . 2 . . . . . 5 . . Recycler 9 | 1 2 1 . 1 . 2 2 . . Operator 2 | . 1 . . . . . 1 . . Watcher 5 | . 3 . 1 . . . 1 . . Swarmer 22 | . 6 . . 7 . 3 5 1 . Grunt 48 | . 6 . . 6 . . 26 10 . Duelist 4 | . . . . 1 . . 2 1 . Sentry 15 | . . . 1 . . . 11 3 . Hunter 4 | . . . . . . 1 3 . . Assembled 7 | . . . . 7 . . . . . Best Kill Streak 8 | 2 6 1 2 6 . 3 8 4 . Combat Bots Only 7 | . 3 . 1 6 . 3 7 4 . Max Kills in Single Turn 4 | 1 1 1 1 4 . 1 2 1 . Gunslinging 1 | . . . . 1 . . 1 . . Exploded 4 | . . . . 4 . . 2 1 . Melee . | . . . . . . . . . . Uniques/NPCs Destroyed . | . . . . . . . . . . Combat | -11 -10 -10 -9 -9 -9 -8 -8 -8 -8 -------- Run | Scr Mat Min Mat Min Exi Min Mat Gar Mat Damage Taken 6746 | . 389 . 88 1452 . 212 3455 1074 76 Core 800 | . 17 . 14 179 . 30 401 144 15 Absorbed by Shields . | . . . . . . . . . . Core Remaining (%) 79 | 100 . 93 . . . 44 . . . Volleys Fired 463 | 3 60 4 17 51 . 17 207 104 . Largest 2 | 2 2 2 2 2 . 2 2 2 . Hottest 88 | 60 70 46 46 53 . 46 88 88 . Shots Fired 854 | 6 117 8 34 101 . 34 405 149 . Gun 674 | 6 117 8 34 98 . 34 325 52 . Cannon 113 | . . . . . . . 68 45 . Launcher 8 | . . . . 3 . . 3 2 . Special 59 | . . . . . . . 9 50 . Kinetic 769 | 3 106 8 34 98 . 34 389 97 . Thermal 71 | 3 9 . . . . . 9 50 . Explosive 8 | . . . . 3 . . 3 2 . Electromagnetic 6 | . 2 . . . . . 4 . . Robot Hit Streak 44 | 2 13 11 9 7 . 4 33 44 . Robot Miss Streak 7 | 1 3 3 2 3 . 2 7 6 . Penetration Max 1 | . . . . . . . 1 1 . Secondary Targets 7 | . . . . 2 . 2 3 . . Max Gunslinging Chain 1 | . . . . 1 . 1 1 . . Shots Hit Robots 569 | 3 77 3 24 53 . 21 282 106 . Core Hits 264 | 3 33 3 4 39 . 9 125 48 . Critical Hits 13 | . 1 . . 2 . . 5 5 . Critical Kills 9 | . . . . 2 . . 4 3 . Critical Parts Destroyed 4 | . 1 . . . . . 1 2 . Melee Attacks 8 | . . . . . . . . 6 2 Impact . | . . . . . . . . . . Slashing 2 | . . . . . . . . . 2 Piercing . | . . . . . . . . . . Sneak Attacks . | . . . . . . . . . . Combat Hostiles . | . . . . . . . . . . Follow-up Attacks . | . . . . . . . . . . Damage Inflicted 10263 | 32 859 63 316 1291 . 189 5519 1994 . Guns 6839 | 32 859 63 316 885 . 189 3953 542 . Cannons 1533 | . . . . . . . 938 595 . Explosions 1243 | . . . . 399 . . 539 305 . Melee . | . . . . . . . . . . Ramming 24 | . . . . 7 . . 10 7 . Kinetic 8198 | . 762 63 316 885 . 189 4846 1137 . Thermal 868 | 32 63 . . . . . 228 545 . Explosive 1094 | . . . . 399 . . 390 305 . Electromagnetic 79 | . 34 . . . . . 45 . . Impact . | . . . . . . . . . . Slashing . | . . . . . . . . . . Piercing . | . . . . . . . . . . Highest Corruption 1 | . . . . 1 1 1 . . . Average Corruption 1 | . . . . 1 1 1 . . . Corruption Purged . | . . . . . . . . . . Effects 15 | . . . . 6 2 7 . . . Message Errors 9 | . . . . 4 2 3 . . . Energy Discharges 4 | . . . . 1 . 3 . . . Data Loss (minor) 2 | . . . . 1 . 1 . . . Overload Shots . | . . . . . . . . . . Overflow Damage 125 | . . . . 14 . . 98 13 . Projectiles 35 | . . . . . . . 35 . . Explosions 90 | . . . . 14 . . 63 13 . Melee . | . . . . . . . . . . Knockbacks 13 | . . . . . . . 6 7 . Impact . | . . . . . . . . . . Kinetic 12 | . . . . . . . 5 7 . Secondary 1 | . . . . . . . 1 . . Self-Inflicted Damage 236 | . . . . 38 . . 195 3 . Shots 6 | . . . . 2 . . 4 . . Rammed 4 | . . . . 2 . . 1 1 . Targets Rammed 4 | . . . . 2 . . 1 1 . Kicked . | . . . . . . . . . . Crushed . | . . . . . . . . . . Highest Temperature 115 | 20 100 6 9 80 . 4 45 115 . Average Temperature 20 | 13 26 4 9 15 . 3 11 42 . Received Heat Transfer 2155 | . 105 . 27 367 . . 1197 423 36 Siege Activations . | . . . . . . . . . . Robots Corrupted . | . . . . . . . . . . Combat Hostiles . | . . . . . . . . . . Parts Fried . | . . . . . . . . . . Impact Corruptions . | . . . . . . . . . . Robots Melted . | . . . . . . . . . . Combat Hostiles . | . . . . . . . . . . Parts Melted . | . . . . . . . . . . Heat Transferred 2532 | 75 185 . . . . . 459 1813 . Parts Sabotaged . | . . . . . . . . . . Parts Stolen . | . . . . . . . . . . Parts Stripped . | . . . . . . . . . . Power Chain Reactions 1 | . . . . . . . 1 . . Missiles Intercepted . | . . . . . . . . . . Alert | -11 -10 -10 -9 -9 -9 -8 -8 -8 -8 ------- Run | Scr Mat Min Mat Min Exi Min Mat Gar Mat Peak Influence 1005 | 10 226 160 119 152 . 90 758 1005 557 Average Influence 326 | 3 45 73 88 72 . 15 400 793 517 Maximum Alert Level 3 | . 1 . . . . . 3 3 2 Low Security (%) 53 | 100 99 100 100 100 . 100 22 . . Level 1 4 | . . . . . . . 16 . . Level 2 24 | . . . . . . . 58 28 100 Level 3 16 | . . . . . . . 2 71 . Level 4 . | . . . . . . . . . . Level 5 . | . . . . . . . . . . High Security . | . . . . . . . . . . Max Security . | . . . . . . . . . . Squads Dispatched 16 | . 4 . . 1 . . 11 . . Investigation 10 | . 4 . . 1 . . 5 . . Extermination . | . . . . . . . . . . Reinforcement 2 | . . . . . . . 2 . . Assault . | . . . . . . . . . . Garrison 4 | . . . . . . . 4 . . Intercept . | . . . . . . . . . . Construction Impeded 1 | . . . . . . . 1 . . Haulers Reinforced . | . . . . . . . . . . Stealth | -11 -10 -10 -9 -9 -9 -8 -8 -8 -8 --------- Run | Scr Mat Min Mat Min Exi Min Mat Gar Mat Distress Signals 5 | . 3 . . 1 . . 1 . . Communications Jammed . | . . . . . . . . . . Distress Signals . | . . . . . . . . . . Times Spotted 203 | . 27 5 3 41 . 4 80 35 8 Peak Tracking Total 19 | . 5 2 2 19 . 3 5 4 6 Tactical Retreats 24 | . 2 1 . 7 . . 4 9 1 Traps | -11 -10 -10 -9 -9 -9 -8 -8 -8 -8 ------- Run | Scr Mat Min Mat Min Exi Min Mat Gar Mat Traps Triggered 17 | . 1 . . . . . 1 15 . Indirectly . | . . . . . . . . . . Trap Hack Attempts . | . . . . . . . . . . Triggered . | . . . . . . . . . . Disarmed . | . . . . . . . . . . Reprogrammed . | . . . . . . . . . . Reused . | . . . . . . . . . . Traps Extracted . | . . . . . . . . . . Installed . | . . . . . . . . . . Triggered . | . . . . . . . . . . Exploded 2 | . . . . . . . . 2 . Machines | -11 -10 -10 -9 -9 -9 -8 -8 -8 -8 ---------- Run | Scr Mat Min Mat Min Exi Min Mat Gar Mat Machines Disabled 13 | . . . . . . . 9 4 . Max in Single Turn 2 | . . . . . . . 2 1 . Garrison Relay 4 | . . . . . . . . 4 . Machines Sabotaged . | . . . . . . . . . . Garrisons Compromised . | . . . . . . . . . . Overloaded Fab Kills . | . . . . . . . . . . Fab Network Shutdowns . | . . . . . . . . . . Hacking | -11 -10 -10 -9 -9 -9 -8 -8 -8 -8 --------- Run | Scr Mat Min Mat Min Exi Min Mat Gar Mat Machines Accessed 24 | . 6 . . 1 1 1 14 . 1 Terminals 16 | . 5 . . . . 1 9 . 1 Fabricators . | . . . . . . . . . . Repair Stations 1 | . . . . . . . 1 . . Recycling Units 3 | . 1 . . . . . 2 . . Scanalyzers 1 | . . . . . . . 1 . . Garrison Access 1 | . . . . . . . 1 . . Total Hacks 58 | . 17 . . 1 1 1 36 . 2 Successful 31 | . 6 . . 1 1 . 22 . 1 Failed 26 | . 11 . . . . 1 13 . 1 Catastrophic 3 | . . . . . . 1 1 . 1 Database Lockouts 1 | . . . . . . . 1 . . Manual 44 | . 17 . . . . 1 24 . 2 Terminals 44 | . 16 . . . . 1 25 . 2 Fabricators . | . . . . . . . . . . Repair Stations 3 | . . . . . . . 3 . . Recycling Units 3 | . 1 . . . . . 2 . . Scanalyzers 4 | . . . . . . . 4 . . Garrison Access 2 | . . . . . . . 2 . . Terminal Hacks 13 | . 4 . . 1 1 . 6 . 1 Record 1 | . . . . . 1 . . . . Robot Schematic 1 | . . . . . . . 1 . . Robot Analysis 2 | . 2 . . . . . . . . Open Door 1 | . . . . 1 . . . . . Branch Access Points 1 | . . . . . . . . . 1 Unreport Threat 2 | . . . . . . . 2 . . Locate Traps 2 | . 1 . . . . . 1 . . Recall Investigation 2 | . 1 . . . . . 1 . . Zone Layout 1 | . . . . . . . 1 . . Fabricator Hacks . | . . . . . . . . . . Repair Station Hacks 2 | . . . . . . . 2 . . Scan Component 1 | . . . . . . . 1 . . Repair 1 | . . . . . . . 1 . . Recycling Unit Hacks . | . . . . . . . . . . Scanalyzer 4 | . . . . . . . 4 . . Insert Component 2 | . . . . . . . 2 . . Analyze 2 | . . . . . . . 2 . . Garrison Access Hacks 1 | . . . . . . . 1 . . Unlock Access 1 | . . . . . . . 1 . . Unauthorized Hacks 11 | . 2 . . . . . 9 . . Terminals 7 | . 1 . . . . . 6 . . Track 2 | . . . . . . . 2 . . Botnet 2 | . . . . . . . 2 . . Disrupt 1 | . . . . . . . 1 . . Operators 2 | . 1 . . . . . 1 . . Fabricators . | . . . . . . . . . . Repair Stations . | . . . . . . . . . . Recycling Units 3 | . 1 . . . . . 2 . . Tunnel 3 | . 1 . . . . . 2 . . Scanalyzers . | . . . . . . . . . . Garrison Access 1 | . . . . . . . 1 . . Reprogram 1 | . . . . . . . 1 . . Data Cores Recovered . | . . . . . . . . . . Used . | . . . . . . . . . . Hacking Detections 18 | . 5 . . . . 1 11 . 1 Full Trace Events 3 | . 2 . . . . . 1 . . Feedback Events . | . . . . . . . . . . Feedback Blocked . | . . . . . . . . . . Robot Schematics Acquired 1 | . . . . . . . 1 . . Robots Built . | . . . . . . . . . . Matter . | . . . . . . . . . . Time . | . . . . . . . . . . Total Robot Build Rating . | . . . . . . . . . . Part Schematics Acquired 2 | . . . . . . . 2 . . Parts Built . | . . . . . . . . . . Matter . | . . . . . . . . . . Time . | . . . . . . . . . . Total Part Build Rating . | . . . . . . . . . . Parts Repaired 1 | . . . . . . . 1 . . Time 40 | . . . . . . . 40 . . Parts Recycled . | . . . . . . . . . . Recycled Matter . | . . . . . . . . . . Retrieved Matter . | . . . . . . . . . . Retrieved Components . | . . . . . . . . . . Parts Scanalyzed 2 | . . . . . . . 2 . . Part Schematics Acquired 2 | . . . . . . . 2 . . Parts Damaged . | . . . . . . . . . . Bothacking | -11 -10 -10 -9 -9 -9 -8 -8 -8 -8 ------------ Run | Scr Mat Min Mat Min Exi Min Mat Gar Mat Used RIF Installer 1 | . . . . . . . . 1 . Robots Hacked 3 | . . . . . . . . 3 . Non-combat . | . . . . . . . . . . Combat 3 | . . . . . . . . 3 . Robot Hacks Applied 3 | . . . . . . . . 3 . formatsys_high 3 | . . . . . . . . 3 . Relay Couplers Released 16 | . . . . . . . . 16 . Machine Destruction 16 | . . . . . . . . 16 . Attached 2 | . . . . . . . . 2 . Robots Rewired . | . . . . . . . . . . Allies Hacked . | . . . . . . . . . . Hacks Repelled . | . . . . . . . . . . Allies | -11 -10 -10 -9 -9 -9 -8 -8 -8 -8 -------- Run | Scr Mat Min Mat Min Exi Min Mat Gar Mat Total Allies 10 | . . 1 . 3 . . 3 3 . Largest Group 3 | . . 1 1 3 . . 3 3 3 Highest-Rated Group 63 | . . 31 31 40 . . 48 63 63 Highest-Rated Ally 31 | . . 31 31 16 . . 16 29 29 Total Orders 5 | . . . . . . . . 5 . STAY 3 | . . . . . . . . 3 . FOLLOW 2 | . . . . . . . . 2 . Ally Attacks 75 | . . 12 . 14 . . . 35 14 Total Damage 1090 | . . 230 . 150 . . . 352 358 Kills 13 | . . 5 . 2 . . . 4 2 Allies Corrupted . | . . . . . . . . . . Allies Melted . | . . . . . . . . . . Intel | -11 -10 -10 -9 -9 -9 -8 -8 -8 -8 ------- Run | Scr Mat Min Mat Min Exi Min Mat Gar Mat Robot Analysis Total 2 | . 2 . . . . . . . . Derelict Logs Recovered 3 | . . 2 . 1 . . . . . Drone Launches . | . . . . . . . . . . Drone Recoveries . | . . . . . . . . . . Exploration | -11 -10 -10 -9 -9 -9 -8 -8 -8 -8 ------------- Run | Scr Mat Min Mat Min Exi Min Mat Gar Mat Turns Passed 9706 | 113 1792 197 318 1197 577 752 2427 2103 230 Spaces Moved 4677 | 54 893 92 130 492 284 356 1066 1155 155 Core 2 | 2 . . . . . . . . . Treads 2378 | 52 893 92 130 492 284 340 95 . . Legs . | . . . . . . . . . . Wheels 2297 | . . . . . . 16 971 1155 155 Hover . | . . . . . . . . . . Flight . | . . . . . . . . . . Fastest Speed 50 | 50 160 180 180 200 200 160 130 125 140 Average Speed 160 | 155 172 180 187 200 200 198 140 131 140 Slowest Speed 260 | 160 180 180 200 240 200 200 260 140 140 Overloaded Moves . | . . . . . . . . . . Propulsion Burnouts . | . . . . . . . . . . Robots Hopped . | . . . . . . . . . . Cave-ins Triggered . | . . . . . . . . . . Exploration Rate (%) 52 | 6 96 18 16 87 52 74 75 86 18 Regions Visited 9 Branch Regions 4 Pre-discovered Areas 7 | . 1 2 . 1 1 . 2 . . Known Exits Taken 1 | . . . . . . . 1 . . Unknown Exits Taken 7 | 1 1 1 1 1 1 1 . . . Scrap Searched 1 | . . . . . . 1 . . . Spaces Dug 2 | . . . . . . . . . 2 Terrain Destroyed 144 | . . . . 22 . . 94 26 2 Melee 2 | . . . . . . . . . 2 Projectile 23 | . . . . . . . 19 4 . AOE 119 | . . . . 22 . . 75 22 . Actions | -11 -10 -10 -9 -9 -9 -8 -8 -8 -8 --------- Run | Scr Mat Min Mat Min Exi Min Mat Gar Mat Total 6017 | 74 1049 118 178 618 294 375 1610 1535 166 Wait 424 | 8 33 21 23 41 . . 221 72 5 Move 4668 | 53 892 91 129 491 283 355 1065 1154 155 Hop . | . . . . . . . . . . Pick Up 127 | 4 26 1 4 14 8 1 44 24 1 Fast Attach 23 | 6 5 . . 1 1 . 4 6 . Attach 53 | . 2 . 1 8 . 2 33 7 . Detach 3 | . 1 . . . . . 2 . . Swap 56 | . 13 . 2 5 . . 13 21 2 Drop 65 | . 17 1 2 5 2 . 20 17 1 Fire 463 | 3 60 4 17 51 . 17 207 104 . Melee 8 | . . . . . . . . 6 2 Ram 2 | . . . . . . . 1 1 . Kick . | . . . . . . . . . . Crush 2 | . . . . 2 . . . . . Escape Stasis 120 | . . . . . . . . 120 . Rewire 3 | . . . . . . . . 3 . Trap . | . . . . . . . . . . Miscellaneous . | . . . . . . . . . . Route ------- -11/Scrapyard -10/Materials (discovered 3 exits: [*Mat x2] / [*Min]) -10/Mines -9/Materials -9/Mines (discovered 3 exits: *Mat x2 / *Exi) -9/Exiles -8/Mines -8/Materials (discovered 5 exits: *Fac x3 / *Sto / Gar) -8/Garrison (discovered 3 exits: *Mat x3) -8/Materials (discovered 2 exits: *Sto x2) History --------- Turn | Location | Event 28 | -11/Scrapyard | Discovered new exit (range 16) 114 | -11/Scrapyard | Entered Materials 307 | -10/Materials | Build established: Mutant 1365 | -10/Materials | Discovered new exit (range 4) 1706 | -10/Materials | Build established: Hauler-Mutant 1742 | -10/Materials | Discovered new exit (range 15) 1838 | -10/Materials | Discovered new exit (range 12) 1906 | -10/Materials | Entered Mines 1909 | -10/Mines | Received a Mining Laser from a helpful Derelict 1966 | -10/Mines | Learned location of Zion (-6) 2090 | -10/Mines | Discovered new exit (range 6) 2103 | -10/Mines | Entered Materials 2103 | -9/Materials | Accompanied by 1 ally 2103 | -9/Materials | Evolved 2 slots: Utility x2 2357 | -9/Materials | Discovered new exit (range 11) 2421 | -9/Materials | Entered Mines 2457 | -9/Mines | Assisted by bots powering up and referring to "LRC-V3" 2561 | -9/Mines | Assembled infested the area 2566 | -9/Mines | Assisted by a Guerilla fighting off Assembled 2750 | -9/Mines | Found a damaged Exp. Sensor Array with a note attached 2756 | -9/Mines | Found Prototype Device 2775 | -9/Mines | Discovered new exit (range 10) 3279 | -9/Mines | Lost 4 parts (1n1u2w) 3450 | -9/Mines | Discovered new exit (range 9) 3483 | -9/Mines | Met a Derelict shopkeep closing up shop 3609 | -9/Mines | Deemed a non-threat by the Exiles lab entrance 3609 | -9/Mines | Discovered new exit (range 5) 3618 | -9/Mines | Entered Exiles 3666 | -9/Exiles | Met 8R-AWN 3700 | -9/Exiles | Met EX-HEX 3813 | -9/Exiles | Met EX-DEC 4167 | -9/Exiles | Discovered new exit (range 15) 4195 | -9/Exiles | Entered Mines 4892 | -8/Mines | Discovered new exit (range 15) 4919 | -8/Mines | Core integrity fell below 50% 4947 | -8/Mines | Entered Materials 4947 | -8/Materials | Evolved 2 slots: Utility x2 4948 | -8/Materials | Identified exit to Factory 5320 | -8/Materials | Lost 4 parts (1p1n1u1w) 5351 | -8/Materials | Garrison activated, responded to threat 5404 | -8/Materials | Destroyed 7 combat bots 5567 | -8/Materials | Discovered new exit (range 8) 5989 | -8/Materials | Lost 3 parts (2n1w) 6183 | -8/Materials | Core integrity fell below 50% 6254 | -8/Materials | Discovered exit to Factory (range 14) 6375 | -8/Materials | Identified Exp. Sensor Array 6869 | -8/Materials | Discovered exit to Factory (range 5) 6940 | -8/Materials | Lost 4 parts (1p1n1u1w) 6992 | -8/Materials | Central database locked down 7141 | -8/Materials | Repaired Exp. Sensor Array 7198 | -8/Materials | Garrison activated, responded to threat 7343 | -8/Materials | Identified exit to Garrison 7374 | -8/Materials | Entered Garrison 7374 | -8/Garrison | Accompanied by 3 allies 7381 | -8/Garrison | Installed Relay Interface Framework 7432 | -8/Garrison | Triggered checkpoint 7472 | -8/Garrison | Triggered checkpoint 7729 | -8/Garrison | Garrison Relay disabled 7921 | -8/Garrison | Discovered new exit (range 13) 7950 | -8/Garrison | Triggered checkpoint 7959 | -8/Garrison | Core integrity fell below 20% 7983 | -8/Garrison | Garrison Relay disabled 8089 | -8/Garrison | Triggered checkpoint 8171 | -8/Garrison | Lost 3 parts (1p1u1w) 8180 | -8/Garrison | Triggered checkpoint 8190 | -8/Garrison | Triggered checkpoint 8460 | -8/Garrison | Triggered checkpoint 8529 | -8/Garrison | Lost 4 parts (1p2n1u) 8544 | -8/Garrison | Garrison Relay disabled 8579 | -8/Garrison | Discovered new exit (range 14) 8784 | -8/Garrison | Triggered checkpoint 9032 | -8/Garrison | Discovered new exit (range 12) 9214 | -8/Garrison | Garrison Relay disabled 9237 | -8/Garrison | Build established: Bothacker-Mutant 9477 | -8/Garrison | Entered Materials 9477 | -8/Materials | Accompanied by 3 allies 9512 | -8/Materials | Identified exit to Storage 9707 | -8/Materials | Destroyed by G-47 Trooper with Particle Gun Last Messages --------------- 09504_ Acquired Imp. Datajack. 09512_ Connecting with Terminal... 09512_ Current location identified: Materials >>Access(Branch) Found 2 branch access points: (75,82) Storage (16,89) Storage Map updated. 09513_ Connecting with Terminal... 09525_ K-01 Serf collects debris. 09531_ R-06 Scavenger collects Datajack. 09535_ K-01 Serf collects debris. 09535_ W-25 Informer destroyed. 09539_ R-06 Scavenger collects Imp. Hover Unit. 09543_ R-06 Scavenger collects Imp. Signal Interpreter. 09554_ R-06 Scavenger collects Imp. Sensor Array. 09619_ Trooper 3a destroyed. 09680_ Lgt. Treads severed. 09689_ Rogue 3a destroyed. 09700_ Hadron Collector disabled. Map ----- +----------------------------------------------------+ | ????????????????????????????????????? | | ????????????????????????????????????? | | ????????????????????????????????????? | | ????????????????????????????????????? | | ????????????????????????????????????? | | ????????????????????????????????????? | | ????????????????????????????????????? | | ????????????????????????????????????? | | ????????????????????????????????????? | | ????????????????????????????????????? | | ????????????????????????????????????? | | ???????????????????????###??????????? | | ??????????????????????? ??????????? | | ??????????????????????? ??????????? | | ???????????????????????# #?????????? | | ???????????????????????# ?????????? | | ???????????????????????# ?????????? | | ???????????????????????# ?????????? | | ???????????????????????# ?????????? | | ???????????????????????# ?????????? | | ???##????#####?????????# ?????????? | | ?## ###### /?????##### #?????????? | | ?# + ?????? #?????????? | | ?# # > ???????? #?????????? | | ?# # ?????????# g##????????? | | ## """ ## #?????????# @;#######??? | | #%!""" ## #?????????#b # #??? | | /==""" ## ####??????# # #??? | | # ## #??????# # #??? | | +# """ ## #??????/ ; """ #??? | | # "R ## #????? # #?"""" #??? | | # """ ## #???? # #?"""" #??? | | # ## #??? ?#### ###### #? | | ####+##### ############? =#= # | | + ? = % / # | | ############## ####### !#! !!# | | #????????????#! !#?????#####??!!# | | #????????????#! !#??????????????# | | #????????????##!!!!##??????????????? | | #?????????????######???????????????? | | #???????????????????????????????????? | | | | | | | | | | | | | | | | | | | +----------------------------------------------------+ Best States ------------- Heat Dissipation 50 Energy Generation 18 Energy Capacity 265 Matter Stores 300 Matter Capacity 300 Sight Range 16 Robot Scan Range 30 Terrain Scan Density 10 Armor Coverage 225 Core Shielding 20 Utility Shielding 33 Evasion (%) 40 Recoil Reduction 2 Item Schematics ----------------- Hcp. Storage Unit | -8/Materials | Scanalyzed Exp. Sensor Array | -8/Materials | Scanalyzed Robot Schematics ------------------ M-28 Smith | -8/Materials | Hacked Fabricated ------------ Nothing Alien Tech Used ----------------- None Achievements -------------- None Challenges ------------ None Game ------ Seed ImpulseInsulationPerforator Manual? 0 Play Time 01:02:20 Cumulative 142.3 hours Start 2020.06.22 @ 17:38:45 End 2020.06.22 @ 18:58:59 Sessions 1 Manual Loads 0 Difficulty Rogue Special Mode None Game No. 63 Rogue 63 Adventurer 0 Explorer 0 Win Type - Total 7 Types 6/0/0/1/0/0/0 Lore% 72 Gallery% 68 Achievement% 58 Wizard Run 0 Options --------- ASCII 1 Keyboard 0 Movement Numpad Keybinds 0 Fullscreen 1 Font 18/SmallcapsGlow Map View 76x50 Tactical HUD 1 Map Filters NONE Filters NONE Steam 1 RUN: 8a87a81a-26ca-4fdf-bf23-ee897637508b